bitfinex/quotes_ETHUSD_20240714
["timestamp","ask_amount","ask_price","bid_price","bid_amount"]
[1720919847443,0.32853485,3186.4,3185.3,5.4655]
[1720919849149,0.32853485,3186.4,3185.6,1.911]
[1720919849470,0.32853485,3186.4,3185.7,0.1911]
[1720919850448,0.32853485,3186.4,3185.8,0.06277141]
[1720919853759,3.0,3187.5,3186.0,1.911]
[1720919854002,0.32851588,3186.8,3186.0,1.911]
[1720919854299,1.08748004,3186.7,3186.0,1.911]
[1720919854482,1.08748004,3186.6,3186.1,0.1911]
[1720919855061,1.08748397,3186.5,3186.1,0.1911]
[1720919855283,1.08748397,3186.4,3186.0,1.911]
[1720919855492,1.08748397,3186.6,3186.0,1.911]
[1720919857325,1.08748397,3186.6,3185.8,0.06276654]
[1720919857531,1.08748397,3186.6,3186.1,0.06276657]
[1720919857682,1.08748397,3186.6,3186.2,0.44847466]
[1720919857886,1.08748397,3186.6,3186.3,0.06276178]
[1720919858801,0.32851602,3186.7,3186.2,0.44847466]
[1720919859136,1.08746083,3186.6,3186.3,0.06275736]
[1720919859333,1.08746083,3186.5,3186.4,0.3022052]
[1720919860191,1.08746083,3186.5,3186.2,0.44847466]
[1720919860390,1.08746083,3186.4,3186.2,0.44847466]
[1720919860593,1.08746083,3186.3,3186.2,0.44847466]
[1720919861539,0.32851602,3186.7,3186.2,0.44847466]
[1720919861703,1.08746103,3186.6,3186.2,0.44847466]
[1720919861906,1.08745978,3186.5,3186.3,0.29593447]
[1720919862107,1.08745978,3186.6,3186.3,0.29593447]
[1720919862308,1.08745978,3186.6,3186.5,2.387]
[1720919863190,1.08745978,3186.6,3186.4,1.911]
[1720919863390,1.08745978,3186.5,3186.4,1.911]
[1720919863626,1.08745978,3186.5,3186.0,4.298]
[1720919863836,1.08745978,3186.4,3186.1,3.0]
[1720919863991,1.08745978,3186.3,3186.0,1.911]
[1720919864347,1.08746038,3186.2,3186.0,1.911]
[1720919864625,2.76208576,3187.3,3186.0,2.1021]
[1720919864923,1.08745275,3187.2,3186.0,2.1021]
[1720919865127,1.08745275,3187.1,3186.0,2.1021]
[1720919865302,1.08745275,3187.2,3186.0,2.1021]
[1720919866191,1.08745275,3187.2,3185.7,0.1911]
[1720919866489,1.08745275,3187.2,3185.7,3.1911]
[1720919866693,2.76208576,3187.3,3185.7,3.1911]
[1720919866694,1.08745275,3187.1,3185.7,3.1911]
[1720919866897,1.08745275,3187.2,3185.7,3.1911]
[1720919867424,1.08745275,3187.1,3185.7,3.1911]
[1720919867593,1.08745275,3187.0,3185.8,1.000034]
[1720919867789,2.76208576,3187.3,3185.7,3.1911]
[1720919867790,1.08745275,3186.9,3185.7,3.1911]
[1720919868096,2.4336,3187.1,3185.6,4.298]
[1720919868097,1.08745275,3187.0,3185.6,1.911]
[1720919868318,1.08745275,3186.9,3185.6,1.911]
[1720919868627,2.4336,3187.1,3185.6,1.911]
[1720919868628,1.08745275,3186.8,3185.6,1.911]
[1720919868935,2.4336,3186.6,3185.2,2.387]
[1720919869094,2.4336,3186.4,3184.9,7.44]
[1720919869297,1.08745275,3186.3,3184.9,7.44]
[1720919869513,3.52105275,3186.2,3184.9,7.44]
[1720919869701,1.08745275,3186.1,3184.9,7.44]
[1720919870031,1.63745275,3186.0,3184.9,7.44]
[1720919870230,1.08745275,3185.9,3184.9,7.44]
[1720919870389,0.55,3186.0,3184.9,7.44]
[1720919870390,1.08745275,3185.8,3184.9,7.44]
[1720919870593,1.08745275,3185.7,3184.9,7.44]
[1720919870794,1.08745275,3185.6,3184.9,7.44]
[1720919871027,1.08745275,3185.5,3184.9,7.44]
[1720919871229,1.08745275,3186.1,3184.9,8.184]
[1720919871409,1.08792198,3185.4,3184.9,7.44]
[1720919871610,1.08792198,3185.3,3184.9,7.44]
[1720919871817,2.4336,3186.2,3184.9,7.44]
[1720919872021,1.08791863,3186.1,3184.9,7.44]
[1720919872209,1.08791863,3186.0,3184.9,7.44]
[1720919872543,1.08791863,3185.9,3184.9,7.44]
[1720919872737,1.08791863,3185.8,3184.9,7.44]
[1720919873046,1.08791863,3185.7,3184.9,0.744]
[1720919873248,1.08791863,3185.6,3184.7,1.911]
[1720919873407,2.4336,3186.2,3184.8,0.06279109]
[1720919873408,1.08791863,3185.5,3184.8,0.06279109]
[1720919873728,1.08791863,3185.4,3184.8,0.06279109]
[1720919873933,2.4336,3186.2,3184.8,0.06279109]
[1720919874133,1.08790878,3186.1,3184.8,0.06279109]
[1720919874301,1.08790878,3186.0,3184.8,0.94137911]
[1720919874634,2.4336,3186.2,3184.8,0.94137911]
[1720919874635,1.08793589,3185.9,3184.8,0.94137911]
[1720919874795,1.0879361,3185.8,3184.8,0.94137911]
[1720919874991,1.0879361,3185.7,3184.8,0.94137911]
[1720919875231,1.0879361,3186.1,3184.8,0.94137911]
[1720919875398,2.4336,3186.2,3184.8,0.94137911]
[1720919875399,1.0879361,3186.0,3184.8,0.94137911]
[1720919875599,1.0879361,3185.9,3184.8,0.94137911]
[1720919875799,1.0879361,3185.8,3184.8,0.94137911]
[1720919876137,1.0879361,3185.7,3184.8,0.94137911]
[1720919876300,1.0879361,3186.1,3184.8,0.94137911]
[1720919876496,1.08794461,3186.0,3184.6,9.351]
[1720919876696,1.08794461,3185.9,3184.6,9.351]
[1720919876926,1.08794461,3185.8,3184.6,9.351]
[1720919877110,1.08794461,3186.1,3184.6,9.351]
[1720919877317,1.08794461,3186.0,3184.6,9.351]
[1720919877532,1.08794461,3185.9,3184.6,10.2861]
[1720919877730,1.08794461,3185.8,3184.6,10.2861]
[1720919878030,0.32841484,3185.8,3184.6,10.2861]
[1720919878229,1.08791313,3185.7,3184.6,10.2861]
[1720919878430,1.08791313,3185.6,3184.6,10.2861]
[1720919878601,1.08791313,3185.7,3184.7,1.02861]
[1720919881272,1.08791313,3185.7,3184.6,9.351]
[1720919881764,1.08791313,3185.7,3184.6,7.44]
[1720919883935,1.08797909,3185.6,3184.6,7.44]
[1720919884135,1.08797909,3185.5,3184.6,7.44]
[1720919884332,0.32841484,3185.8,3184.6,7.44]
[1720919884567,1.0879785,3185.7,3184.6,6.87393157]
[1720919884762,2.71856834,3185.3,3183.9,0.02439567]
[1720919884976,1.911,3184.7,3183.9,0.02439567]
[1720919885190,5.05786834,3184.5,3183.9,0.02439567]
[1720919885388,1.0879785,3184.4,3183.9,0.02439567]
[1720919885736,4.0879785,3184.4,3183.9,0.02439567]
[1720919886033,4.0879785,3184.3,3183.9,0.02439567]
[1720919886272,1.0879785,3184.2,3183.9,0.02439567]
[1720919886577,1.0879785,3184.1,3183.9,0.02439567]
[1720919886880,5.3393,3184.9,3183.9,0.02439567]
[1720919886881,1.0879785,3184.8,3183.9,0.02439567]
[1720919887030,1.08849787,3184.7,3183.9,0.02439567]
[1720919887234,1.08849787,3184.6,3183.9,0.02439567]
[1720919887452,1.08849787,3184.5,3183.9,0.02439567]
[1720919887636,1.08849787,3184.8,3183.9,0.02439567]
[1720919887848,1.08849787,3184.7,3183.9,0.02439567]
[1720919888181,1.08849787,3184.6,3183.9,0.02439567]
[1720919888338,1.08849787,3184.5,3183.9,0.02439567]
[1720919888535,1.08849787,3184.4,3183.9,0.02439567]
[1720919888761,1.08849787,3184.8,3183.9,0.02439567]
[1720919889435,1.08849787,3184.7,3183.9,0.02439567]
[1720919889660,1.08849787,3184.6,3183.9,0.02439567]
[1720919889969,1.08849787,3184.5,3183.9,0.02439567]
[1720919890195,2.3393,3185.4,3183.9,0.02439567]
[1720919890335,1.08831853,3184.4,3183.9,0.02439567]
[1720919890680,1.08831853,3184.3,3183.9,0.02439567]
[1720919890897,1.08831853,3185.2,3183.9,0.02439567]
[1720919891047,1.08831853,3184.2,3183.9,0.02439567]
[1720919891251,3.0,3185.3,3183.9,0.02439567]
[1720919891588,1.08833064,3185.2,3183.9,0.02439567]
[1720919891875,1.08833064,3185.1,3183.9,0.02439567]
[1720919892048,1.08833064,3185.2,3183.9,0.02439567]
[1720919893340,0.32834653,3185.1,3183.9,0.02439567]
[1720919893550,1.08835159,3185.0,3183.9,0.02439567]
[1720919893773,1.08835184,3184.9,3183.9,0.02439567]
[1720919893994,1.08835184,3184.8,3183.9,0.02439567]
[1720919894189,1.08835184,3185.0,3183.9,0.02439567]
[1720919894374,1.08835184,3184.9,3183.9,0.02439567]
[1720919894554,1.08835184,3185.0,3183.9,0.02439567]
[1720919896893,0.32834653,3185.1,3183.9,0.02439567]
[1720919896894,1.08832557,3184.9,3183.9,0.02439567]
[1720919897083,1.08832557,3184.8,3183.9,0.02439567]
[1720919897284,0.32834653,3185.1,3183.9,0.02439567]
[1720919897517,1.08834657,3185.0,3183.9,0.02439567]
[1720919897814,1.08834657,3184.9,3183.9,0.02439567]
[1720919898014,1.08834657,3184.8,3183.9,0.02439567]
[1720919898316,1.08834657,3184.7,3183.9,0.02439567]
[1720919898470,1.08834657,3184.6,3183.9,0.02439567]
[1720919898666,0.32834653,3185.1,3183.9,0.02439567]
[1720919898667,2.2947,3184.7,3183.9,0.02439567]
[1720919898912,1.08834657,3184.6,3183.9,0.02439567]
[1720919900078,1.08843268,3184.5,3183.9,0.02439567]
[1720919900321,1.08843874,3184.4,3183.9,0.02439567]
[1720919900616,1.08843874,3184.3,3183.9,0.02439567]
[1720919900911,1.08843874,3184.2,3183.9,0.02439567]
[1720919901121,1.08843874,3184.6,3183.9,0.02439567]
[1720919902126,4.08843874,3184.6,3183.9,0.02439567]
[1720919902301,1.08843874,3184.5,3183.9,0.02439567]
[1720919903325,1.08853118,3184.4,3183.9,0.02439567]
[1720919903619,1.08853118,3184.3,3183.9,0.02439567]
[1720919903927,1.08853118,3184.2,3183.9,0.02439567]
[1720919904090,3.0,3184.6,3183.9,0.02439567]
[1720919904091,1.08853118,3184.5,3183.9,0.02439567]
[1720919904290,3.0,3184.6,3183.9,0.02439567]
[1720919904291,1.08853118,3184.4,3183.9,0.02439567]
[1720919904622,1.08853118,3184.3,3183.9,0.02439567]
[1720919904819,1.08853118,3184.5,3183.9,0.02439567]
[1720919905003,1.08853118,3184.4,3183.9,0.02439567]
[1720919905202,1.08853118,3184.5,3183.9,0.02439567]
[1720919906124,1.08853118,3184.5,3183.1,2.2734]
[1720919906323,1.08853118,3184.5,3183.2,0.91473316]
[1720919906622,3.0,3184.6,3183.2,0.91473316]
[1720919906814,1.08853887,3184.5,3183.2,0.91473316]
[1720919907234,1.08853887,3184.4,3183.2,0.91473316]
[1720919907528,1.08853887,3184.3,3183.2,0.91473316]
[1720919907828,1.08853887,3184.2,3183.2,0.91473316]
[1720919908127,1.08853887,3184.1,3183.2,0.91473316]
[1720919908329,1.08853887,3184.5,3183.2,0.91473316]
[1720919908620,0.32814443,3184.1,3183.1,2.33622196]
[1720919908826,0.32814443,3184.1,3183.0,6.87393157]
[1720919908827,1.08853887,3184.0,3183.2,2.33622197]
[1720919909033,1.08853887,3184.0,3183.9,2.2734]
[1720919909195,0.32813397,3184.6,3183.9,2.2734]
[1720919909395,1.08853887,3184.5,3183.9,2.2734]
[1720919909706,1.08853887,3184.4,3183.9,2.2734]
[1720919909905,0.32813397,3184.6,3183.8,0.02439567]
[1720919910126,1.08841172,3184.5,3183.8,0.02439567]
[1720919910422,0.32813397,3184.6,3183.8,0.02439567]
[1720919910629,1.088411,3184.5,3183.8,0.02439567]
[1720919910794,1.088411,3184.4,3183.8,0.02439567]
[1720919911007,1.088411,3184.3,3183.8,0.25417524]
[1720919911210,1.088411,3184.2,3183.8,0.25417524]
[1720919911540,1.088411,3184.1,3183.8,0.25417524]
[1720919911759,1.088411,3184.0,3183.8,0.25417524]
[1720919911964,0.32813397,3184.6,3183.9,2.2734]
[1720919912112,1.08835722,3184.5,3183.9,2.2734]
[1720919912306,0.32813397,3184.6,3183.9,2.2734]
[1720919912307,1.08835722,3184.4,3183.9,2.2734]
[1720919912513,1.08835722,3184.3,3183.9,2.33621185]
[1720919912732,1.08835722,3184.2,3184.0,0.23606075]
[1720919912934,1.08835722,3184.1,3184.0,0.23606075]
[1720919913151,1.08824782,3184.1,3184.0,0.23606075]
[1720919914060,1.08824782,3184.1,3183.9,2.2734]
[1720919914349,1.08824782,3184.0,3183.9,2.2734]
[1720919914547,1.08824782,3184.5,3183.9,2.2734]
[1720919914714,1.08824782,3184.4,3183.9,2.2734]
[1720919914909,1.08824782,3184.5,3183.9,2.2734]
[1720919915210,1.08824782,3184.4,3183.8,0.02439567]
[1720919915416,1.08824782,3184.3,3183.8,0.02439567]
[1720919915652,0.32813397,3184.6,3183.8,0.02439567]
[1720919915653,1.08824782,3184.2,3183.8,0.02439567]
[1720919915858,1.08824782,3184.1,3183.8,0.02439567]
[1720919916053,1.08824782,3184.5,3183.8,0.02439567]
[1720919916362,1.08824782,3184.4,3183.8,0.02439567]
[1720919916654,1.08846864,3184.3,3183.8,0.02439567]
[1720919916852,1.08846864,3184.2,3183.8,0.02439567]
[1720919917054,1.08846864,3184.1,3183.8,0.02439567]
[1720919917363,1.08846864,3184.0,3183.8,0.02439567]
[1720919917745,0.32813397,3184.6,3183.8,0.02439567]
[1720919917960,0.32813397,3184.6,3183.8,2.43519567]
[1720919917961,1.08841435,3184.5,3183.8,2.43519567]
[1720919918128,1.08841435,3184.4,3183.9,0.43461957]
[1720919918471,1.08841435,3184.3,3183.9,0.43461957]
[1720919918641,1.08841435,3184.2,3183.9,0.43461957]
[1720919918850,1.08841435,3184.1,3183.9,0.43461957]
[1720919919049,1.08841435,3184.0,3183.9,0.43461957]
[1720919919823,3.0,3185.3,3183.9,0.43461957]
[1720919920140,1.08836576,3185.2,3183.9,2.84541957]
[1720919920339,1.08836576,3185.1,3184.0,0.97437468]
[1720919920663,1.08836576,3185.0,3184.0,0.97437468]
[1720919920850,3.0,3185.3,3184.0,0.97437468]
[1720919920851,1.08836576,3184.9,3184.0,0.97437468]
[1720919921055,1.08836576,3184.8,3184.0,0.97437468]
[1720919921250,1.08836576,3184.7,3184.0,0.97437468]
[1720919921455,1.08836576,3184.6,3184.1,0.38197943]
[1720919921656,1.08836576,3184.5,3184.1,0.38197943]
[1720919921857,1.08836576,3184.4,3184.1,0.38197943]
[1720919922045,1.08836576,3184.3,3184.1,0.38197943]
[1720919922246,1.08836576,3184.2,3184.1,0.38197943]
[1720919923035,3.0,3185.3,3184.1,0.38197943]
[1720919923347,1.08827222,3185.2,3184.1,0.38197943]
[1720919923533,3.0,3185.3,3184.1,0.38197943]
[1720919923734,1.08826861,3185.2,3184.1,0.38197943]
[1720919923973,1.08826861,3185.1,3184.1,0.38197943]
[1720919924174,1.08826861,3185.0,3184.2,2.4108]
[1720919924375,2.71312363,3185.6,3184.1,2.29297943]
[1720919924376,1.08826861,3184.9,3184.6,2.4108]
[1720919924546,1.08826861,3184.8,3184.6,2.4108]
[1720919924867,1.08826861,3184.7,3184.6,2.4108]
[1720919926248,3.0,3185.8,3184.6,2.4108]
[1720919926454,1.08807827,3185.7,3184.6,2.4108]
[1720919926783,1.08807827,3185.6,3184.6,2.4108]
[1720919926985,1.08807827,3185.5,3184.6,2.4108]
[1720919927279,1.08807827,3185.4,3184.6,2.4108]
[1720919927479,1.08807827,3185.3,3184.6,2.4108]
[1720919927679,1.08807827,3185.2,3184.6,2.4108]
[1720919927885,5.71625845,3185.7,3184.6,2.4108]
[1720919927886,1.08807827,3185.1,3184.6,2.4108]
[1720919928092,1.08807827,3185.6,3184.6,2.84298]
[1720919928248,1.08807827,3185.0,3184.2,2.4108]
[1720919928454,1.08807827,3184.9,3184.2,2.4108]
[1720919928684,0.32807167,3184.9,3184.2,2.4108]
[1720919928996,1.08807827,3184.8,3184.2,2.4108]
[1720919929446,1.08807827,3184.8,3183.8,8.80932724]
[1720919929647,1.08824333,3184.7,3183.9,2.4108]
[1720919929949,1.08824333,3184.6,3183.9,2.4108]
[1720919930146,1.08824333,3184.8,3183.9,2.4108]
[1720919930382,1.08824333,3184.7,3183.9,2.4108]
[1720919930591,1.08824333,3184.8,3183.9,2.4108]
[1720919930756,1.08824333,3184.6,3183.9,2.4108]
[1720919930963,0.32807167,3184.9,3183.9,2.4108]
[1720919930964,1.08824333,3184.5,3183.9,2.4108]
[1720919931202,1.08824333,3184.4,3183.9,2.4108]
[1720919931404,1.08824333,3184.8,3183.9,2.4108]
[1720919933033,1.08825143,3184.7,3183.9,2.4108]
[1720919933329,1.08825143,3184.6,3183.9,3.53281272]
[1720919933504,1.08825143,3184.8,3183.9,3.53281272]
[1720919933709,1.08825143,3184.8,3183.9,2.4108]
[1720919934107,0.32807167,3184.9,3183.9,2.4108]
[1720919934308,1.08824473,3184.8,3183.9,2.4108]
[1720919936431,0.32807167,3184.9,3183.9,2.4108]
[1720919936631,1.08823629,3184.8,3184.0,1.12201272]
[1720919936857,1.08823629,3184.7,3184.0,1.12201272]
[1720919937003,1.08824661,3184.6,3184.0,1.12201272]
[1720919937205,1.08824661,3184.5,3184.0,1.12201272]
[1720919937502,1.08824661,3184.4,3184.0,1.12201272]
[1720919937744,1.08824661,3184.3,3184.1,0.35328127]
[1720919937912,1.08824661,3184.2,3184.1,0.35328127]
[1720919939706,1.08823745,3184.2,3184.1,0.35328127]
[1720919940013,1.0882416,3184.2,3184.1,0.35328127]
[1720919940411,1.0882416,3184.2,3184.1,4.9483831]
[1720919940823,1.0882416,3184.2,3184.1,2.3731]
[1720919941142,1.0882416,3184.2,3184.1,5.3731]
[1720919941560,1.0882416,3184.2,3184.1,2.3731]
[1720919942156,0.32807167,3184.9,3184.1,2.3731]
[1720919942306,1.08813652,3184.2,3184.1,2.3731]
[1720919942514,1.08813652,3184.2,3184.1,2.72261127]
[1720919943752,1.08813652,3184.2,3184.1,2.3731]
[1720919944234,1.4162099,3184.2,3184.1,2.3731]
[1720919945408,0.32807338,3184.2,3184.1,2.3731]
[1720919945655,1.416248,3184.2,3184.1,2.3731]
[1720919946006,0.32807338,3184.2,3184.1,2.3731]
[1720919946227,0.32807338,3184.2,3184.1,2.91371127]
[1720919946655,1.41622714,3184.2,3184.1,2.91371127]
[1720919948795,0.32807338,3184.2,3184.1,4.82471127]
[1720919948960,0.32807338,3184.2,3184.1,4.2841]
[1720919949144,1.41622463,3184.2,3183.8,6.89832724]
[1720919949348,1.08815125,3184.1,3183.8,6.89832724]
[1720919951395,1.08815125,3184.1,3184.0,1.911]
[1720919955382,1.08822236,3184.1,3184.0,1.911]
[1720919955683,1.08822236,3184.1,3184.0,2.79193272]
[1720919956079,1.08822236,3184.1,3184.0,5.16503272]
[1720919956611,1.08822236,3184.1,3184.0,7.67759272]
[1720919958017,2.41630921,3185.4,3185.3,2.51153]
[1720919958232,0.43055221,3186.7,3186.2,2.51082]
[1720919958437,0.30970473,3188.5,3186.2,2.51082]
[1720919958438,1.08758796,3186.6,3186.4,4.8485]
[1720919958585,2.72253619,3187.4,3186.5,1.911]
[1720919958770,1.08747026,3186.5,3186.4,4.84856]
[1720919959115,1.08742551,3186.5,3186.4,4.7989]
[1720919959263,5.17629282,3188.1,3186.5,2.51057]
[1720919959583,1.08731079,3188.0,3187.2,1.911]
[1720919959965,1.08731079,3187.9,3187.3,0.06274175]
[1720919960165,1.08731079,3187.8,3187.2,1.911]
[1720919960402,1.08731079,3187.7,3187.3,0.06273958]
[1720919960580,2.454,3188.5,3187.3,0.06273958]
[1720919960581,1.08731079,3187.6,3187.3,0.06273958]
[1720919960784,1.08731079,3187.5,3187.2,1.911]
[1720919960970,2.454,3188.5,3187.2,1.911]
[1720919960971,1.08731079,3187.4,3187.2,1.911]
[1720919961172,1.08731079,3187.3,3187.2,1.911]
[1720919961374,2.454,3188.5,3187.2,1.911]
[1720919961715,1.08712589,3188.4,3187.2,1.911]
[1720919961926,1.08712589,3188.3,3187.2,1.911]
[1720919962075,1.08712589,3188.4,3187.2,1.911]
[1720919962503,1.08712589,3188.4,3187.3,0.06273961]
[1720919964915,1.08704355,3188.3,3187.3,0.06273961]
[1720919965073,1.08708386,3188.2,3187.2,1.911]
[1720919965416,3.0,3188.4,3187.2,1.911]
[1720919965597,1.08710203,3188.3,3187.2,1.911]
[1720919965772,3.0,3188.4,3187.2,1.911]
[1720919965976,1.08709554,3188.3,3187.2,1.911]
[1720919966202,3.0,3188.4,3187.2,1.911]
[1720919966516,3.0,3188.4,3187.3,0.06273961]
[1720919966678,0.32796989,3188.5,3187.6,1.911]
[1720919966879,0.32796989,3188.5,3188.0,1.911]
[1720919967439,2.454,3189.1,3188.0,1.911]
[1720919967440,0.32796789,3189.0,3188.0,1.911]
[1720919967618,1.08696147,3188.9,3188.0,1.911]
[1720919967920,0.32796789,3189.0,3187.4,2.3379]
[1720919967921,1.08696147,3188.8,3187.6,1.911]
[1720919968101,0.32796789,3189.0,3187.6,1.911]
[1720919968301,1.08699977,3188.9,3187.6,1.911]
[1720919968514,3.32796789,3189.0,3187.6,1.911]
[1720919968933,1.08697549,3188.9,3187.6,1.911]
[1720919969233,3.32796789,3189.0,3187.6,1.911]
[1720919973201,3.32796789,3189.0,3187.1,0.02439567]
[1720919973202,0.55,3188.9,3187.1,0.02439567]
[1720919973406,2.454,3188.7,3187.1,0.02439567]
[1720919973601,0.55,3188.6,3187.1,0.02439567]
[1720919974043,3.55,3188.6,3187.1,0.02439567]
[1720919975752,1.08724491,3188.5,3187.1,0.02439567]
[1720919976047,1.63724491,3188.4,3187.1,0.02439567]
[1720919976239,1.08724491,3188.3,3187.1,0.02439567]
[1720919976605,0.55,3188.4,3187.1,0.02439567]
[1720919976808,0.55,3188.5,3187.1,0.02439567]
[1720919977252,1.08722022,3188.4,3187.1,0.02439567]
[1720919977429,0.55,3188.3,3187.1,0.02439567]
[1720919977909,0.55,3188.5,3187.1,0.02439567]
[1720919978106,1.08723347,3188.4,3187.1,0.02439567]
[1720919978439,1.63723347,3188.3,3187.1,0.02439567]
[1720919978648,0.55,3188.3,3187.1,0.02439567]
[1720919978847,0.55,3188.4,3187.1,0.02439567]
[1720919979141,3.0,3188.6,3187.1,0.02439567]
[1720919979142,1.08723803,3188.3,3187.1,0.02439567]
[1720919979308,1.08722748,3188.2,3187.1,0.02439567]
[1720919979508,2.25,3188.5,3187.1,0.02439567]
[1720919979744,1.08725066,3188.4,3187.1,0.02439567]
[1720919979948,1.63725066,3188.3,3187.1,0.02439567]
[1720919980252,1.08725066,3188.2,3187.1,0.02439567]
[1720919981023,0.55,3188.1,3187.1,0.02439567]
[1720919981242,1.08725066,3188.0,3187.1,0.02439567]
[1720919981451,0.55,3188.1,3187.1,0.02439567]
[1720919981635,1.08729005,3188.0,3187.1,0.02439567]
[1720919981839,1.08729005,3187.9,3187.1,0.02439567]
[1720919982136,0.55,3188.3,3187.1,0.02439567]
[1720919982362,1.08728913,3188.2,3187.1,0.02439567]
[1720919982569,1.63728913,3188.1,3187.1,0.02439567]
[1720919982869,3.56038913,3188.0,3187.1,0.02439567]
[1720919983172,1.08728913,3187.9,3187.1,0.02439567]
[1720919984777,2.4731,3188.0,3187.1,0.02439567]
[1720919985066,1.0872885,3187.9,3187.1,0.02439567]
[1720919985471,4.0872885,3187.9,3187.1,0.02439567]
[1720919985691,1.6372885,3187.8,3187.1,0.02439567]
[1720919985836,2.7872885,3187.7,3187.1,0.02439567]
[1720919986037,2.4731,3187.5,3187.1,0.02439567]
[1720919986275,2.4731,3187.5,3185.9,2.337]
[1720919986276,1.7,3187.3,3185.9,2.337]
[1720919986471,1.0872885,3187.2,3185.8,6.87393157]
[1720919986677,6.1215,3187.1,3185.8,6.87393157]
[1720919986886,6.1215,3187.1,3184.5,2.337]
[1720919986887,1.911,3186.2,3184.5,2.337]
[1720919987053,2.7872885,3186.1,3184.5,2.337]
[1720919987387,4.0872885,3186.0,3184.5,2.337]
[1720919987543,1.6372885,3185.9,3184.5,2.337]
[1720919987944,1.0872885,3185.8,3184.5,2.337]
[1720919988440,1.0872885,3185.9,3184.5,2.337]
[1720919988644,0.32805308,3185.7,3184.5,2.337]
[1720919988886,1.0872885,3185.6,3184.5,2.337]
[1720919989647,1.0872885,3185.6,3184.5,2.5707]
[1720919991261,1.08805772,3185.5,3184.5,2.5707]
[1720919991465,1.08805772,3185.4,3184.5,2.5707]
[1720919991786,1.08805772,3185.6,3184.5,2.5707]
[1720919991944,1.08805772,3185.6,3184.5,2.337]
[1720919992959,1.08805772,3185.6,3185.2,0.02439567]
[1720919993390,0.55,3185.5,3185.2,0.02439567]
[1720919993556,1.08805772,3185.4,3185.2,0.02439567]
[1720919994182,1.08805772,3185.4,3184.1,2.337]
[1720919994340,3.55,3185.5,3184.2,0.2337]
[1720919994341,0.55,3185.5,3184.2,0.2337]
[1720919994764,1.08816179,3185.4,3184.2,0.2337]
[1720919994986,1.08816179,3185.3,3184.2,0.2337]
[1720919995143,0.55,3185.5,3184.2,0.2337]
[1720919995343,1.08814447,3185.4,3184.2,0.2337]
[1720919995647,1.08815874,3185.3,3184.2,0.2337]
[1720919995844,0.55,3185.5,3184.2,0.2337]
[1720919996045,1.0881609,3185.4,3184.2,0.2337]
[1720919996292,0.55,3185.5,3184.2,0.2337]
[1720919996478,1.08815813,3185.4,3184.2,0.2337]
[1720919996785,0.55,3185.5,3184.2,0.2337]
[1720919996989,1.08817884,3185.4,3184.2,0.2337]
[1720919997172,0.55,3185.5,3184.2,0.2337]
[1720919997499,1.08816753,3185.4,3184.2,0.2337]
[1720919997663,0.55,3185.5,3184.2,0.2337]
[1720919997867,1.08817407,3185.4,3184.2,0.2337]
[1720919998061,0.55,3185.5,3184.2,0.2337]
[1720919998286,1.08817417,3185.4,3184.1,2.337]
[1720919998497,0.55,3185.5,3184.1,2.337]
[1720919998655,1.911,3185.1,3182.4,12.43]
[1720919998857,1.911,3185.1,3183.3,2.2848]
[1720919998858,1.08820138,3185.0,3183.3,2.2848]
[1720919999061,1.08820138,3185.0,3183.4,0.91587316]
[1720919999257,1.08820138,3184.9,3183.4,0.91587316]
[1720919999462,1.08820138,3185.2,3183.4,0.91587316]
[1720919999783,1.63820138,3185.1,3183.4,0.91587316]
[1720919999997,1.08820138,3185.0,3183.4,0.91587316]
[1720920000181,1.08820138,3185.0,3183.5,0.32006732]
[1720920000380,1.08820138,3185.3,3183.6,2.2848]
[1720920000589,1.08820138,3185.3,3184.6,0.02439567]
[1720920000761,0.55,3185.2,3184.6,0.02439567]
[1720920001090,1.08831592,3185.1,3184.6,0.02439567]
[1720920001313,1.08835917,3185.0,3184.6,0.02439567]
[1720920001497,1.08835917,3184.9,3184.6,0.02439567]
[1720920001810,3.0,3185.6,3184.6,0.02439567]
[1720920001985,1.63826965,3185.5,3184.6,0.02439567]
[1720920002187,1.08826965,3185.4,3184.6,0.02439567]
[1720920002386,1.08826965,3185.3,3184.6,0.02439567]
[1720920002692,1.08826965,3185.2,3184.6,0.02439567]
[1720920003014,1.08826965,3185.1,3184.6,0.02439567]
[1720920003213,0.55,3185.5,3184.6,0.02439567]
[1720920003214,1.08820187,3185.4,3184.6,0.02439567]
[1720920003414,1.08819725,3185.3,3184.6,0.02439567]
[1720920003619,1.08823995,3185.2,3184.6,0.02439567]
[1720920003821,1.08823995,3185.1,3184.6,0.02439567]
[1720920003978,0.55,3185.5,3184.6,0.02439567]
[1720920004177,1.08824285,3185.4,3184.6,0.02439567]
[1720920004498,1.08824285,3185.3,3184.6,0.02439567]
[1720920004698,1.08824285,3185.2,3184.6,0.02439567]
[1720920005026,1.08824285,3185.1,3184.6,0.02439567]
[1720920005307,0.55,3185.5,3184.6,0.02439567]
[1720920005516,1.08822886,3185.4,3184.6,0.02439567]
[1720920005892,1.08822886,3185.3,3184.6,0.02439567]
[1720920006092,1.08822886,3185.2,3184.6,0.02439567]
[1720920006325,1.08822613,3185.1,3184.6,0.02439567]
[1720920006528,0.55,3185.5,3184.6,0.02439567]
[1720920006705,1.08822698,3185.4,3184.6,0.02439567]
[1720920007111,1.08825145,3185.3,3184.6,0.02439567]
[1720920007334,1.08824058,3185.2,3184.6,0.02439567]
[1720920010339,1.08825145,3185.3,3184.6,0.02439567]
[1720920010539,1.08826337,3185.1,3184.6,0.02439567]
[1720920010734,1.08826337,3185.0,3184.6,0.02439567]
[1720920011055,1.08825252,3184.9,3184.6,0.02439567]
[1720920011264,1.08825252,3184.8,3184.6,0.02439567]
[1720920011545,1.08826434,3184.7,3184.6,0.02439567]
[1720920011716,1.08826434,3184.7,3184.4,2.2848]
[1720920011917,1.08825145,3185.3,3184.4,2.2848]
[1720920012113,1.63825502,3185.2,3184.4,2.2848]
[1720920012312,1.08825502,3185.1,3184.4,2.2848]
[1720920012639,1.08825502,3185.0,3184.4,2.2848]
[1720920012842,1.08825502,3184.9,3184.4,2.2848]
[1720920013038,1.08825145,3185.3,3184.5,0.22848]
[1720920013039,1.08825502,3184.8,3184.5,0.22848]
[1720920013220,1.08825145,3185.3,3184.5,0.22848]
[1720920013415,1.08814762,3185.2,3184.5,0.22848]
[1720920013629,1.08814762,3185.1,3184.5,0.22848]